bitfinex/quotes_ETHUSD_20230103
["timestamp","ask_amount","ask_price","bid_price","bid_amount"]
[1672759736999,51.16745056,1210.8,1210.7,4.14886114]
[1672759737197,57.21897333,1210.8,1210.6,0.23498477]
[1672759737406,56.20783363,1210.8,1210.6,4.31684591]
[1672759737733,4.2665731,1210.7,1210.6,4.31684591]
[1672759737940,19.1781931,1210.7,1210.6,4.31684591]
[1672759738153,29.1542609,1210.7,1210.6,4.21684591]
[1672759738520,29.15354197,1210.7,1210.6,4.14886114]
[1672759738702,34.79886,1210.7,1210.6,4.14886114]
[1672759738911,39.06393736,1210.7,1210.6,4.14886114]
[1672759740145,39.05294222,1210.7,1210.6,4.14886114]
[1672759740351,42.05294222,1210.7,1210.6,4.14886114]
[1672759740893,42.82824793,1210.7,1210.6,4.14886114]
[1672759744354,32.91662793,1210.7,1210.6,4.14886114]
[1672759744985,27.87624486,1210.7,1210.6,4.14886114]
[1672759745646,32.91662793,1210.7,1210.6,4.14886114]
[1672759745876,27.87624486,1210.7,1210.6,4.14886114]
[1672759746239,12.31470906,1210.7,1210.6,4.14886114]
[1672759750066,8.05300486,1210.7,1210.6,4.14886114]
[1672759750240,12.31470906,1210.7,1210.6,16.11530114]
[1672759750449,12.31470906,1210.7,1210.6,6.26986114]
[1672759753307,12.31470906,1210.7,1210.6,16.18230114]
[1672759754140,12.31470906,1210.7,1210.6,6.26986114]
[1672759754689,22.22632906,1210.7,1210.6,6.26986114]
[1672759754903,28.49634486,1210.7,1210.6,4.21586114]
[1672759755074,38.40796486,1210.7,1210.6,4.14886114]
[1672759755284,43.44834793,1210.7,1210.6,4.14886114]
[1672759759624,13.71348793,1210.7,1210.6,4.14886114]
[1672759759839,12.93540624,1210.7,1210.6,4.14886114]
[1672759760557,23.62510793,1210.7,1210.6,4.14886114]
[1672759761179,8.67310486,1210.7,1210.6,4.14886114]
[1672759761388,12.93584965,1210.7,1210.6,4.14886114]
[1672759762164,17.85846479,1210.7,1210.6,4.14886114]
[1672759762543,28.54772307,1210.7,1210.6,4.14886114]
[1672759762760,3.6841,1210.7,1210.6,4.14886114]
[1672759762990,13.66048307,1210.7,1210.6,4.14886114]
[1672759763215,23.63610307,1210.7,1210.6,4.14555914]
[1672759763432,24.48984884,1210.7,1210.6,4.14555914]
[1672759767218,34.40146884,1210.7,1210.6,4.14555914]
[1672759767437,24.48984884,1210.7,1210.6,4.14555914]
[1672759767952,14.57822884,1210.7,1210.6,4.14555914]
[1672759768273,34.40146884,1210.7,1210.6,4.14555914]
[1672759768584,33.78136884,1210.7,1210.6,4.14555914]
[1672759769316,23.86974884,1210.7,1210.6,4.14555914]
[1672759769629,13.95812884,1210.7,1210.6,4.14555914]
[1672759770015,23.86974884,1210.7,1210.6,4.14555914]
[1672759772789,18.82936577,1210.7,1210.6,4.14555914]
[1672759773098,38.65260577,1210.7,1210.6,4.14555914]
[1672759774415,34.79250854,1210.7,1210.6,4.14555914]
[1672759776071,24.88088854,1210.7,1210.6,4.14555914]
[1672759776632,19.88088854,1210.7,1210.6,4.14555914]
[1672759777473,24.88088854,1210.7,1210.6,4.14555914]
[1672759778207,34.79250854,1210.7,1210.6,4.14555914]
[1672759779008,13.96417031,1210.7,1210.6,4.14555914]
[1672759779155,13.96486095,1210.7,1210.6,4.14555914]
[1672759779687,13.96455083,1210.7,1210.6,4.14555914]
[1672759780101,23.87617083,1210.7,1210.6,4.14555914]
[1672759781260,28.74098577,1210.7,1210.6,4.14555914]
[1672759781677,34.79250854,1210.7,1210.6,4.14555914]
[1672759781945,44.70412854,1210.7,1210.6,4.14555914]
[1672759782515,44.70412854,1210.7,1210.6,2.45245914]
[1672759783384,44.70412854,1210.7,1210.6,0.76615914]
[1672759783601,14.96926854,1210.7,1210.6,0.76615914]
[1672759783810,8.91774577,1210.7,1210.6,0.76615914]
[1672759784279,28.74098577,1210.7,1210.6,0.76615914]
[1672759784830,33.78703348,1210.7,1210.6,0.76615914]
[1672759785310,33.78681282,1210.7,1210.6,0.76615914]
[1672759785834,23.87519282,1210.7,1210.6,0.76615914]
[1672759785986,13.96357282,1210.7,1210.6,0.76615914]
[1672759788074,13.96357282,1210.7,1210.6,10.67859914]
[1672759788258,13.96357282,1210.7,1210.6,0.83315914]
[1672759788421,13.96357282,1210.7,1210.6,0.76615914]
[1672759789458,14.96926854,1210.7,1210.6,0.76615914]
[1672759790037,13.96767488,1210.7,1210.6,0.76615914]
[1672759790204,13.96703425,1210.7,1210.6,0.76615914]
[1672759790630,5.91774577,1210.7,1210.6,18.23259914]
[1672759790838,5.91774577,1210.7,1210.6,43.9141884]
[1672759791069,10.19341474,1210.7,1210.6,43.9141884]
[1672759792985,5.91774577,1210.7,1210.6,43.9141884]
[1672759793299,5.19341474,1210.7,1210.6,43.9141884]
[1672759795783,0.91774577,1210.7,1210.6,43.9141884]
[1672759795981,0.85374577,1210.7,1210.6,43.9141884]
[1672759796389,4.51657632,1210.7,1210.6,43.9141884]
[1672759796809,3.90629857,1210.7,1210.6,49.17161762]
[1672759797019,6.34833144,1210.7,1210.6,51.44861762]
[1672759797393,3.97029857,1210.7,1210.6,51.44861762]
[1672759797545,3.90629857,1210.7,1210.6,51.44861762]
[1672759798013,3.90629857,1210.7,1210.6,46.1911884]
[1672759798919,6.34621433,1210.7,1210.6,46.1911884]
[1672759799128,6.41021433,1210.7,1210.6,46.1911884]
[1672759799787,6.41021433,1210.7,1210.6,56.1036284]
[1672759800582,6.40842857,1210.7,1210.6,56.1036284]
[1672759800716,3.97029857,1210.7,1210.6,20.6363084]
[1672759800924,0.85374577,1210.7,1210.6,24.75903914]
[1672759801128,4.51657632,1210.7,1210.6,24.75903914]
[1672759801711,4.51657632,1210.7,1210.6,14.84659914]
[1672759801926,4.51657632,1210.7,1210.6,24.75903914]
[1672759802132,5.12941474,1210.7,1210.6,0.83315914]
[1672759802446,10.81351474,1210.7,1210.6,0.76615914]
[1672759803783,6.53784577,1210.7,1210.6,0.76615914]
[1672759803979,10.80250426,1210.7,1210.6,0.76615914]
[1672759804184,10.80250426,1210.7,1210.6,10.67859914]
[1672759804385,10.80250426,1210.7,1210.6,22.70603914]
[1672759804826,10.18240426,1210.7,1210.6,12.79359914]
[1672759805883,10.18240426,1210.7,1210.6,2.88115914]
[1672759806071,10.18240426,1210.7,1210.6,2.81415914]
[1672759806442,30.00637401,1210.7,1210.6,2.81415914]
[1672759806600,10.18313401,1210.7,1210.6,2.81415914]
[1672759806808,10.183434,1210.7,1210.6,2.81415914]
[1672759807269,10.803534,1210.7,1210.6,2.81415914]
[1672759807486,6.53784577,1210.7,1210.6,2.81415914]
[1672759807696,11.58713425,1210.7,1210.6,2.81107011]
[1672759808012,6.53784577,1210.7,1210.6,2.81107011]
[1672759808232,41.32199425,1210.7,1210.6,0.76307011]
[1672759808447,39.27270577,1210.7,1210.6,0.76307011]
[1672759808749,45.32422854,1210.7,1210.6,0.76307011]
[1672759809241,44.31120342,1210.7,1210.6,0.76307011]
[1672759810849,44.31120342,1210.7,1210.5,0.01252347]
[1672759810850,39.27270577,1210.7,1210.5,0.01252347]
[1672759811181,42.62593369,1210.6,1210.5,4.16138461]
[1672759811392,12.95261369,1210.6,1210.5,4.16138461]
[1672759813859,9.95261369,1210.6,1210.5,6.21538461]
[1672759814069,5.6841,1210.6,1210.5,38.39775964]
[1672759814548,5.6841,1210.6,1210.5,36.02213461]
[1672759814718,9.95261369,1210.6,1210.5,26.10888461]
[1672759815155,9.33251369,1210.6,1210.5,36.02213461]
[1672759815330,9.33251369,1210.6,1210.5,26.10888461]
[1672759815540,9.33251369,1210.6,1210.5,16.19563461]
[1672759816340,9.33251369,1210.6,1210.5,26.10888461]
[1672759817223,9.33251369,1210.6,1210.5,36.02213461]
[1672759817497,5.064,1210.6,1210.5,36.02213461]
[1672759817806,5.064,1210.6,1210.5,38.20737459]
[1672759818031,8.72736165,1210.6,1210.5,38.20737459]
[1672759818962,8.72736165,1210.6,1210.5,28.29412459]
[1672759820007,8.7268616,1210.6,1210.5,18.38087459]
[1672759821373,8.7268616,1210.6,1210.5,28.29412459]
[1672759821588,9.59306433,1210.6,1210.5,38.20737459]
[1672759822275,9.59306433,1210.6,1210.5,28.29412459]
[1672759823802,9.59107734,1210.6,1210.5,28.29412459]
[1672759824257,9.59107734,1210.6,1210.5,16.19806387]
[1672759824682,5.93020273,1210.6,1210.5,16.19806387]
[1672759824896,5.93020273,1210.6,1210.5,15.77706387]
[1672759825753,5.93020273,1210.6,1210.5,25.69031387]
[1672759825998,9.59095777,1210.6,1210.5,25.69031387]
[1672759826210,9.59095777,1210.6,1210.5,35.60356387]
[1672759826571,5.93020273,1210.6,1210.5,35.60356387]
[1672759826786,9.59094884,1210.6,1210.5,40.86909183]
[1672759828501,9.59094884,1210.6,1210.5,40.86630364]
[1672759828713,4.59094884,1210.6,1210.5,40.86630364]
[1672759828921,4.52694884,1210.6,1210.5,40.86630364]
[1672759832881,0.86620273,1210.6,1210.5,40.86630364]
[1672759833091,0.86620273,1210.6,1210.5,5.86102568]
[1672759833391,5.13471642,1210.6,1210.5,5.86102568]
[1672759833569,10.19871642,1210.6,1210.5,5.86102568]
[1672759833719,10.19871642,1210.6,1210.5,15.77427568]
[1672759833932,10.19871642,1210.6,1210.5,5.86102568]
[1672759836284,20.11115642,1210.6,1210.5,5.86102568]
[1672759840664,30.02359642,1210.6,1210.5,5.86102568]
[1672759840878,39.93603642,1210.6,1210.5,5.85859642]
[1672759841092,20.11115642,1210.6,1210.5,5.85859642]
[1672759841963,30.79724935,1210.6,1210.5,5.85859642]
[1672759842192,40.70968935,1210.6,1210.5,5.85859642]
[1672759842401,30.79724935,1210.6,1210.5,5.85859642]
[1672759842775,40.70968935,1210.6,1210.5,5.85859642]
[1672759843105,30.79724935,1210.6,1210.5,5.85859642]
[1672759843496,40.70968935,1210.6,1210.5,5.85859642]
[1672759844166,30.79724935,1210.6,1210.5,4.22559642]
[1672759844356,30.79724935,1210.6,1210.5,4.15859642]
[1672759845913,41.32978935,1210.6,1210.5,4.15859642]
[1672759846182,31.42938354,1210.6,1210.5,4.15859642]
[1672759846392,20.89684354,1210.6,1210.5,4.15859642]
[1672759847805,30.80811444,1210.6,1210.5,4.15859642]
[1672759848073,31.8066055,1210.6,1210.5,4.15859642]
[1672759848292,41.7190455,1210.6,1210.5,4.15859642]
[1672759849624,51.6314855,1210.6,1210.5,4.15859642]
[1672759850201,41.7190455,1210.6,1210.5,4.15637405]
[1672759851633,51.6314855,1210.6,1210.5,4.15637405]
[1672759852029,41.7190455,1210.6,1210.5,4.15637405]
[1672759852361,51.6314855,1210.6,1210.5,4.15637405]
[1672759852578,51.6314855,1210.6,1210.5,0.45682266]
[1672759853192,41.41842476,1210.6,1210.4,0.01228572]
[1672759853405,41.41842476,1210.6,1210.4,4.16114686]
[1672759853406,2.2642,1210.5,1210.4,4.16114686]
[1672759853753,42.12975203,1210.5,1210.4,0.01228572]
[1672759853969,50.15005203,1210.5,1210.4,0.01228572]
[1672759854130,49.92005203,1210.5,1210.4,0.01228572]
[1672759854345,5.5,1210.4,1210.3,0.01219561]
[1672759854602,5.5,1210.3,1210.2,0.01359066]
[1672759854764,46.83216929,1210.3,1210.2,0.01359066]
[1672759854976,69.71907203,1210.3,1210.2,0.01359066]
[1672759855648,74.71907203,1210.3,1210.2,0.01359066]
[1672759855852,80.7624267,1210.3,1210.2,0.01359066]
[1672759856193,74.71907203,1210.3,1210.2,0.01359066]
[1672759856505,80.75384902,1210.3,1210.2,0.01359066]
[1672759857453,86.27096203,1210.3,1210.1,0.01359066]
[1672759857605,86.27096203,1210.3,1210.1,6.6e-07]
[1672759857606,17.92440446,1210.2,1210.1,6.6e-07]
[1672759857811,69.40583446,1210.2,1210.1,6.6e-07]
[1672759858079,69.89963649,1210.2,1210.1,6.6e-07]
[1672759858400,70.12963649,1210.2,1210.1,6.6e-07]
[1672759858778,67.48088768,1210.2,1210.1,6.6e-07]
[1672759859121,62.45853203,1210.2,1210.1,6.6e-07]
[1672759859326,67.48078976,1210.2,1210.1,6.6e-07]
[1672759859665,67.48086614,1210.2,1210.1,6.6e-07]
[1672759860079,68.49263649,1210.2,1210.1,6.6e-07]
[1672759860442,67.4758181,1210.2,1210.1,6.6e-07]
[1672759862181,68.49263649,1210.2,1210.1,6.6e-07]
[1672759862561,62.45853203,1210.2,1210.1,6.6e-07]
[1672759862983,67.47454294,1210.2,1210.1,6.6e-07]
[1672759864961,60.33173,1210.2,1210.1,6.6e-07]
[1672759865171,64.34589377,1210.2,1210.1,6.6e-07]
[1672759867470,57.10173,1210.2,1210.1,6.6e-07]
[1672759867755,60.73816772,1210.2,1210.1,6.6e-07]
[1672759867969,61.34589377,1210.2,1210.1,6.6e-07]
[1672759868137,57.10173,1210.2,1210.1,6.6e-07]
[1672759868787,70.01744,1210.2,1210.1,6.6e-07]
[1672759869397,73.65537485,1210.2,1210.1,6.6e-07]
[1672759869920,73.03507485,1210.2,1210.1,6.6e-07]
[1672759870551,63.11936485,1210.2,1210.1,6.6e-07]
[1672759872803,73.03507485,1210.2,1210.1,6.6e-07]
[1672759874530,84.17731377,1210.2,1210.0,0.01229429]
[1672759874739,46.30447337,1210.1,1210.0,4.16115543]
[1672759875004,51.36847337,1210.1,1210.0,4.16115543]
[1672759875634,51.36847337,1210.1,1210.0,0.01229429]
[1672759876438,40.84613824,1210.1,1210.0,4.16115543]
[1672759876683,30.92960824,1210.1,1210.0,4.16115543]
[1672759876901,11.09654824,1210.1,1210.0,4.16115543]
[1672759877263,30.92960824,1210.1,1210.0,4.16115543]
[1672759878263,40.84613824,1210.1,1210.0,4.16115543]
[1672759878578,41.45194337,1210.1,1210.0,4.16115543]
[1672759879009,51.36847337,1210.1,1210.0,4.16115543]
[1672759879179,51.36847337,1210.1,1210.0,0.01229429]
[1672759879702,51.97428377,1210.1,1210.0,0.01229429]
[1672759879921,55.10193294,1210.1,1209.9,0.01323858]
[1672759880137,5.6204,1210.0,1209.8,0.01429363]
[1672759880364,46.9209895,1209.9,1209.8,0.01429363]
[1672759880523,46.9749895,1209.9,1209.8,0.01429363]
[1672759880730,46.9849895,1209.9,1209.8,0.01429363]
[1672759881091,51.9849895,1209.9,1209.8,0.01429363]
[1672759881424,53.6159895,1209.9,1209.8,0.01429363]
[1672759881594,54.96029153,1209.9,1209.8,0.01429363]
[1672759881787,50.71198203,1209.9,1209.8,0.01429363]
[1672759882206,55.72799294,1209.9,1209.8,0.01429363]
[1672759882468,70.90229294,1209.9,1209.8,0.01429363]
[1672759882837,69.27129294,1209.9,1209.8,0.01429363]
[1672759883099,72.40998203,1209.9,1209.8,0.01429363]
[1672759883468,76.65618012,1209.9,1209.8,0.01429363]
[1672759884325,72.40998203,1209.9,1209.8,0.01429363]
[1672759884509,77.42599294,1209.9,1209.8,0.01429363]
[1672759885383,72.40998203,1209.9,1209.8,0.01429363]
[1672759885737,77.42599294,1209.9,1209.8,0.01429363]
[1672759887737,72.40998203,1209.9,1209.8,0.01429363]
[1672759888324,78.44408649,1209.9,1209.8,0.01429363]
[1672759889046,62.49181203,1209.9,1209.8,0.01429363]
[1672759889306,67.51401593,1209.9,1209.8,0.01429363]
[1672759889519,67.0202139,1209.9,1209.8,0.01429363]
[1672759890372,68.03211446,1209.9,1209.8,0.01429363]
[1672759890892,77.95028446,1209.9,1209.8,0.01429363]
[1672759891295,77.32978446,1209.9,1209.8,0.01429363]
[1672759891920,77.82358649,1209.9,1209.8,0.01429363]
[1672759892094,78.44408649,1209.9,1209.8,0.01429363]
[1672759892588,72.40998203,1209.9,1209.8,0.01429363]
[1672759894408,72.40998203,1209.9,1209.7,0.0145082]
[1672759894621,72.40998203,1209.9,1209.7,0.00166681]
[1672759894622,13.09301445,1209.8,1209.7,0.00166681]
[1672759894954,56.32677648,1209.8,1209.7,0.00166681]
[1672759895353,56.32677648,1209.8,1209.7,0.52838025]
[1672759896150,50.29276203,1209.8,1209.7,0.52838025]
[1672759896457,56.32677648,1209.8,1209.7,0.52838025]
[1672759897787,50.29276203,1209.8,1209.7,0.52838025]
[1672759897975,45.16919227,1209.8,1209.7,0.52838025]
[1672759898565,55.08818227,1209.8,1209.7,0.52838025]
[1672759899418,53.25918227,1209.8,1209.7,0.52838025]
[1672759901829,53.25815522,1209.8,1209.7,0.52838025]
[1672759901981,53.48815522,1209.8,1209.7,0.52838025]
[1672759902192,53.25815522,1209.8,1209.7,0.52838025]
[1672759902667,52.76435319,1209.8,1209.7,0.52838025]
[1672759904352,51.99405911,1209.8,1209.7,0.00166681]
[1672759904510,48.96096673,1209.8,1209.7,0.00166681]
[1672759904977,53.98535992,1209.8,1209.7,0.00166681]
[1672759907564,30.3783473,1209.8,1209.7,5.99052795]
[1672759907771,30.3783473,1209.8,1209.7,8.44482171]
[1672759907772,10.5403673,1209.8,1209.7,8.44482171]
[1672759907991,9.93246646,1209.8,1209.7,8.44482171]
[1672759908211,6.28500673,1209.8,1209.7,8.44482171]
[1672759908885,9.93251182,1209.8,1209.7,8.44482171]
[1672759909046,9.93251182,1209.8,1209.7,7.68052795]
[1672759909254,9.93251182,1209.8,1209.7,5.84052795]
[1672759909255,40.2973373,1209.8,1209.7,5.84052795]
[1672759909783,10.5403673,1209.8,1209.7,5.84052795]
[1672759910225,20.4593573,1209.8,1209.7,5.84052795]
[1672759911154,20.4593573,1209.8,1209.7,6.58982171]
[1672759911768,10.5403673,1209.8,1209.7,6.58982171]
[1672759912228,10.5403673,1209.8,1209.7,12.08982171]
[1672759913593,40.2973373,1209.8,1209.7,12.08982171]
[1672759913760,30.3783473,1209.8,1209.7,6.58982171]
[1672759914596,30.3783473,1209.8,1209.7,5.84052795]
[1672759914811,26.12298673,1209.8,1209.7,5.84052795]
[1672759915023,41.06636992,1209.8,1209.7,5.84052795]
[1672759916108,41.06636992,1209.8,1209.7,4.21752795]
[1672759916326,41.06636992,1209.8,1209.7,4.15052795]
[1672759916655,41.06636992,1209.8,1209.7,4.1475061]
[1672759917269,36.04197673,1209.8,1209.7,4.1475061]
[1672759917605,2.0326124,1209.6,1209.5,1.623]
[1672759917842,21.21600808,1209.6,1209.5,7.50632597]
[1672759918026,21.23200808,1209.6,1209.5,13.07232597]
[1672759918342,21.23200808,1209.6,1209.5,7.57232597]
[1672759918343,24.28200808,1209.6,1209.5,7.57232597]
[1672759918495,24.28200808,1209.6,1209.5,4.21486114]
[1672759918496,34.20263808,1209.6,1209.5,4.21486114]
[1672759918704,34.20263808,1209.6,1209.4,8.65064828]
[1672759918705,43.51485266,1209.6,1209.4,8.65064828]
[1672759918911,6.65393674,1209.5,1209.4,14.43650942]
[1672759919121,21.64138674,1209.5,1209.4,5.86700942]
[1672759919861,31.56283674,1209.5,1209.4,5.86700942]
[1672759920525,27.9089,1209.5,1209.4,5.86700942]
[1672759921389,32.17314211,1209.5,1209.4,5.86700942]
[1672759921910,42.86574196,1209.5,1209.4,5.86700942]
[1672759922064,37.83035,1209.5,1209.4,5.86700942]
[1672759922275,43.86436445,1209.5,1209.4,5.86700942]
[1672759922490,43.86436445,1209.5,1209.4,4.23000942]
[1672759922741,43.86436445,1209.5,1209.4,4.16400942]
[1672759923037,37.83035,1209.5,1209.4,4.16400942]
[1672759923250,37.83035,1209.5,1209.4,0.01514828]
[1672759923591,47.7518,1209.5,1209.4,0.01514828]
[1672759923906,53.78581445,1209.5,1209.4,0.01514828]
[1672759924129,54.40651445,1209.5,1209.4,0.01514828]
[1672759925066,48.6025,1209.5,1209.4,8.28e-06]
[1672759925376,5.5,1209.4,1209.3,0.01711316]
[1672759925604,59.29546569,1209.4,1209.3,0.01711316]
[1672759925806,59.52546569,1209.4,1209.3,0.01711316]
[1672759926113,60.14616569,1209.4,1209.3,0.01711316]
[1672759926429,54.59958203,1209.4,1209.3,0.01711316]
[1672759926793,5.5,1209.3,1209.1,0.01576002]
[1672759927002,43.03201557,1209.2,1209.1,0.01576002]
[1672759927324,43.09801557,1209.2,1209.1,0.01576002]
[1672759929226,38.06773,1209.2,1209.1,0.01576002]
[1672759929453,38.68853,1209.2,1209.1,0.01576002]
[1672759929764,49.74468358,1209.2,1209.1,0.01576002]
[1672759929909,43.7083409,1209.2,1209.1,0.01576002]
[1672759930483,42.45633203,1209.2,1209.1,0.00076002]
[1672759930661,35.27419,1209.1,1209.0,0.746337]
[1672759930807,50.21418333,1209.1,1209.0,7e-06]
[1672759931027,50.70798536,1209.1,1209.0,7e-06]
[1672759931884,44.68489203,1209.1,1208.7,0.00757682]
[1672759931977,12.95871125,1208.8,1208.7,0.00757682]
[1672759932183,6.09750453,1208.8,1208.7,4.14886114]
[1672759932378,6.09750453,1208.8,1208.7,5.78586114]
[1672759932637,6.09750453,1208.8,1208.7,11.35186114]
[1672759932860,8.52281892,1208.8,1208.7,11.35186114]
[1672759933014,13.52281892,1208.8,1208.7,21.27988114]
[1672759933237,13.52281892,1208.8,1208.7,11.35186114]
[1672759933458,13.52281892,1208.8,1208.7,31.20790114]
[1672759933706,12.30896051,1208.8,1208.7,35.52413305]
[1672759934392,6.88364612,1208.8,1208.7,45.45215305]
[1672759935214,9.30896051,1208.8,1208.7,45.45215305]
[1672759935523,5.066,1208.8,1208.7,47.08115305]
[1672759935722,5.066,1208.8,1208.7,48.71415305]
[1672759935935,0.002,1208.9,1208.8,5.5]
[1672759936115,4.24296051,1209.1,1208.8,48.17587645]
[1672759936339,4.24296051,1209.1,1209.0,4.14886114]
[1672759936512,4.24296051,1209.1,1209.0,27.27396114]
[1672759936878,2.42531439,1209.1,1209.0,27.33996114]
[1672759937028,3.03150453,1209.1,1209.0,7.48886114]
[1672759937398,8.45455846,1209.1,1209.0,7.48886114]
[1672759937551,8.51855846,1209.1,1209.0,7.48886114]
[1672759938052,8.51855846,1209.1,1209.0,12.98886114]
[1672759938535,8.51855846,1209.1,1209.0,7.48886114]
[1672759939134,8.51855846,1209.1,1209.0,22.91441114]
[1672759939503,5.48705393,1209.1,1209.0,27.19102325]
[1672759939684,8.51855846,1209.1,1209.0,27.19102325]
[1672759939879,5.48705393,1209.1,1209.0,27.19102325]
[1672759940254,5.48705393,1209.1,1209.0,21.69102325]
[1672759940443,5.48705393,1209.1,1209.0,11.76547325]
[1672759940802,8.51855846,1209.1,1209.0,11.76547325]
[1672759941004,8.51855846,1209.1,1209.0,7.48886114]
[1672759941546,18.44328846,1209.1,1209.0,7.48886114]
[1672759941760,16.02023453,1209.1,1209.0,4.21486114]
[1672759942063,6.09550453,1209.1,1209.0,4.14886114]
[1672759943328,25.94496453,1209.1,1209.0,4.14886114]
[1672759944058,25.94496453,1209.1,1209.0,27.85654725]
[1672759944059,8.51785758,1209.1,1209.0,27.85654725]
[1672759944271,8.51785758,1209.1,1209.0,37.84809725]
[1672759944729,8.51785758,1209.1,1209.0,7.48786114]
[1672759944813,18.44258758,1209.1,1209.0,7.48786114]
[1672759945077,25.94496453,1209.1,1209.0,7.48786114]
[1672759945385,16.02023453,1209.1,1209.0,7.48786114]
[1672759946314,6.09550453,1209.1,1209.0,7.48786114]
[1672759946669,6.09550453,1209.1,1209.0,30.07301525]
[1672759946950,6.09550453,1209.1,1209.0,49.92411525]
[1672759947281,6.09550453,1209.1,1209.0,49.92731504]
[1672759948297,6.09550453,1209.1,1209.0,40.00176504]
[1672759949252,3.09550453,1209.1,1209.0,40.00176504]
[1672759949465,0.002,1209.2,1208.9,11.61698568]
[1672759949466,34.57280876,1209.0,1208.9,11.61698568]
[1672759949688,5.01328593,1209.5,1209.1,4.14886114]
[1672759949689,5.07328593,1209.5,1209.1,4.14886114]
[1672759949874,5.01328593,1209.5,1209.4,4.14886114]
[1672759950217,5.01328593,1209.5,1209.4,14.48601725]
[1672759950533,5.01328593,1209.5,1209.4,14.57901725]
[1672759950687,5.01328593,1209.5,1209.4,20.07901725]
[1672759950890,5.01328593,1209.5,1209.4,30.00128725]
[1672759951155,5.01328593,1209.5,1209.4,29.99669624]
[1672759951702,5.01328593,1209.5,1209.4,30.4075064]
[1672759951990,5.01328593,1209.5,1209.4,40.3297764]
[1672759952363,5.01328593,1209.5,1209.4,30.4075064]
[1672759952774,5.01328593,1209.5,1209.4,40.3297764]
[1672759953882,5.01328593,1209.5,1209.4,45.2327764]
[1672759954091,5.01328593,1209.5,1209.4,52.21239365]
[1672759954283,0.01205593,1209.5,1209.4,52.21239365]
[1672759954489,1.225885,1209.8,1209.4,52.21239365]
[1672759954681,1.225885,1209.8,1209.7,1.637]
[1672759954897,12.53086214,1209.8,1209.6,1.632]
[1672759955107,32.36884214,1209.8,1209.6,1.632]
[1672759955313,12.53086214,1209.8,1209.6,5.78086114]
[1672759955525,3.0,1209.7,1209.6,5.87386114]
[1672759956180,24.18768697,1209.7,1209.6,1.725]
[1672759956350,34.73129676,1209.7,1209.4,8.70961725]
[1672759956561,36.20530249,1209.7,1209.4,12.85847839]
[1672759956902,25.34221,1209.6,1209.4,12.85847839]
[1672759957107,3.0,1209.5,1209.4,12.85847839]
[1672759958190,4.45198714,1209.6,1209.4,12.85847839]
[1672759958398,3.0,1209.6,1209.5,1.637]
[1672759958724,12.92073,1209.6,1209.5,1.637]
[1672759958894,3.0,1209.6,1209.5,1.637]
[1672759959099,3.0,1209.6,1209.5,5.78586114]
[1672759959299,3.0,1209.6,1209.5,5.87886114]
[1672759959505,12.92063,1209.6,1209.5,5.87886114]
[1672759959771,22.84126,1209.6,1209.5,5.87886114]
[1672759959988,32.76189,1209.6,1209.5,5.87886114]
[1672759960191,32.76189,1209.6,1209.5,1.73]
[1672759960406,32.76189,1209.6,1209.5,1.637]
[1672759961404,3.0,1209.6,1209.5,5.78586114]
[1672759961623,3.0,1209.6,1209.5,5.87886114]
[1672759962539,12.92063,1209.6,1209.5,5.87886114]
[1672759962752,18.42063,1209.6,1209.5,5.87886114]
[1672759962900,38.26189,1209.6,1209.5,0.093]
[1672759963111,38.26189,1209.6,1209.4,8.70961725]
[1672759963364,38.26189,1209.6,1209.4,12.85847839]
[1672759964190,3.03527559,1209.5,1209.4,12.85847839]
[1672759964398,15.95672559,1209.5,1209.4,12.85847839]
[1672759965134,6.03527559,1209.5,1209.4,12.85847839]
[1672759966007,6.03527559,1209.5,1209.4,34.34001839]
[1672759966224,6.03527559,1209.5,1209.4,49.68387548]
[1672759967686,6.03527559,1209.5,1209.4,39.76160548]
[1672759968728,6.03527559,1209.5,1209.4,29.83933548]
[1672759969101,6.03527559,1209.5,1209.4,24.41774839]
[1672759969102,4.8212722,1209.5,1209.4,24.41774839]
[1672759969358,7.24963514,1209.5,1209.4,14.49547839]
[1672759970001,8.46363853,1209.5,1209.4,14.49547839]
[1672759970322,15.34981294,1209.5,1209.4,14.49547839]
[1672759970536,28.30653853,1209.5,1209.4,14.49547839]
[1672759970675,38.22798853,1209.5,1209.4,14.49547839]
[1672759970888,28.30653853,1209.5,1209.4,14.49547839]
[1672759971261,18.38508853,1209.5,1209.4,14.49547839]
[1672759971624,15.95672559,1209.5,1209.4,14.49547839]
[1672759972116,25.87817559,1209.5,1209.4,14.49547839]
[1672759972314,12.92145,1209.5,1209.4,14.49547839]
[1672759972526,36.40668071,1209.5,1209.4,11.22147839]
[1672759973235,36.40668071,1209.5,1209.1,0.01833214]
[1672759973236,5.5,1209.4,1209.1,0.01833214]
[1672759973448,5.4684537,1209.2,1209.1,4.16719328]
[1672759973659,6.10402983,1209.2,1209.1,0.01833214]
[1672759973872,16.02793983,1209.2,1209.1,4.16719328]
[1672759974054,8.53568222,1209.2,1209.1,0.01833214]
[1672759974274,6.10402983,1209.2,1209.1,0.01833214]
[1672759974505,8.53569851,1209.2,1209.1,0.01833214]
[1672759975360,8.53569851,1209.2,1209.1,4.16719328]
[1672759976404,5.49766868,1209.2,1209.1,4.16719328]
[1672759976986,8.53569851,1209.2,1209.1,6.74235801]
[1672759977214,8.53569851,1209.2,1209.1,6.80835801]
[1672759977877,6.10402983,1209.2,1209.1,6.80835801]
[1672759978101,8.53738614,1209.2,1209.1,6.80835801]
[1672759978430,8.53738614,1209.2,1209.1,16.73308801]
[1672759978727,6.10402983,1209.2,1209.1,4.23319328]
[1672759978936,6.10402983,1209.2,1209.1,14.09192328]
[1672759979111,6.10402983,1209.2,1209.1,14.15792328]
[1672759979324,6.10402983,1209.2,1209.1,4.23319328]
[1672759979521,16.02793983,1209.2,1209.1,4.16719328]
[1672759979730,25.95184983,1209.2,1209.1,4.16719328]
[1672759980159,25.95184983,1209.2,1209.1,0.01833214]
[1672759980160,22.91382,1209.2,1209.1,0.01833214]
[1672759980401,47.0280758,1209.2,1209.1,0.01833214]
[1672759980718,43.38244,1209.2,1209.1,0.01833214]
[1672759980880,47.63182583,1209.2,1209.1,0.01833214]
[1672759981094,48.12562786,1209.2,1209.1,0.01833214]
[1672759981342,47.63182583,1209.2,1209.1,0.01833214]
[1672759982145,17.86009583,1209.2,1208.8,2.09188161]
[1672759982413,5.5,1208.9,1208.8,2.09188161]
[1672759982561,24.19022649,1208.9,1208.8,0.48654947]
[1672759982767,27.19022649,1208.9,1208.8,0.48654947]
[1672759982972,6.72903166,1208.9,1208.8,0.48654947]
[1672759983189,6.72903166,1208.9,1208.8,4.63541061]
[1672759983609,6.72895362,1208.9,1208.8,4.63541061]
[1672759983819,6.72980422,1208.9,1208.8,4.63541061]
[1672759984827,9.16419604,1208.9,1208.8,4.63541061]
[1672759986128,9.16419604,1208.9,1208.8,39.34924946]
[1672759986129,1.89200419,1208.9,1208.8,39.34924946]
[1672759986342,1.82600419,1208.9,1208.8,39.41524946]
[1672759989501,4.32639601,1209.0,1208.8,39.41524946]
[1672759989705,4.32639601,1209.0,1208.9,5.78586114]